[Event "Latvijas 2022. gada jauniešu čempionāta fināls"]
[Site "Riga, Latvia"]
[Date "2022.06.12"]
[Round "1.1"]
[White "Karasevics, Aleksandrs"]
[Black "Vingris, Mikelis"]
[Result "1/2-1/2"]
[TimeControl "3600+30"]
[WhiteElo "1427"]
[BlackElo "1781"]

1. e4 {[%clk 01:00:48]} {[%emt 00:00:11]} c5 {[%clk 01:00:56]} {[%emt
00:00:05]} 2. Nc3 {[%clk 01:00:50]} {[%emt 00:00:28]} d6 {[%clk 01:01:01]}
{[%emt 00:00:25]} 3. f4 {[%clk 01:01:12]} {[%emt 00:00:07]} g6 {[%clk
01:01:06]} {[%emt 00:00:25]} 4. Nf3 {[%clk 01:01:09]} {[%emt 00:00:32]} Bg7
{[%clk 01:01:19]} {[%emt 00:00:18]} 5. Bc4 {[%clk 01:00:23]} {[%emt 00:01:16]}
Nc6 {[%clk 01:01:20]} {[%emt 00:00:29]} 6. O-O {[%clk 01:00:36]} {[%emt
00:00:17]} e6 {[%clk 01:00:54]} {[%emt 00:00:56]} 7. Re1 {[%clk 00:59:49]}
{[%emt 00:01:16]} Nge7 {[%clk 00:56:56]} {[%emt 00:04:29]} 8. d3 {[%clk
00:48:28]} {[%emt 00:11:51]} O-O {[%clk 00:56:00]} {[%emt 00:01:26]} 9. Ne2
{[%clk 00:46:47]} {[%emt 00:02:11]} d5 {[%clk 00:47:17]} {[%emt 00:09:14]} 10.
exd5 {[%clk 00:45:21]} {[%emt 00:01:56]} exd5 {[%clk 00:47:30]} {[%emt
00:00:17]} 11. Bb3 {[%clk 00:45:38]} {[%emt 00:00:13]} Bg4 {[%clk 00:37:24]}
{[%emt 00:10:35]} 12. Kf2 {[%clk 00:39:20]} {[%emt 00:06:48]} Nf5 {[%clk
00:34:20]} {[%emt 00:03:34]} 13. c3 {[%clk 00:36:37]} {[%emt 00:03:14]} Bxf3
{[%clk 00:28:47]} {[%emt 00:06:03]} 14. Kxf3 {[%clk 00:35:48]} {[%emt
00:01:18]} Re8 {[%clk 00:19:42]} {[%emt 00:09:35]} 15. g4 {[%clk 00:32:17]}
{[%emt 00:04:01]} Nh6 {[%clk 00:13:19]} {[%emt 00:06:53]} 16. h3 {[%clk
00:28:00]} {[%emt 00:04:46]} Qd7 {[%clk 00:09:19]} {[%emt 00:04:31]} 17. Ng3
{[%clk 00:22:00]} {[%emt 00:06:29]} Rxe1 {[%clk 00:09:23]} {[%emt 00:00:27]} 18.
Qxe1 {[%clk 00:22:10]} {[%emt 00:00:20]} Re8 {[%clk 00:09:05]} {[%emt
00:00:48]} 19. Qf2 {[%clk 00:19:59]} {[%emt 00:02:40]} b6 {[%clk 00:05:43]}
{[%emt 00:03:53]} 20. Bd2 {[%clk 00:18:19]} {[%emt 00:02:09]} Na5 {[%clk
00:05:06]} {[%emt 00:01:08]} 21. Kg2 {[%clk 00:17:52]} {[%emt 00:00:56]} Nxb3
{[%clk 00:03:37]} {[%emt 00:02:00]} 22. axb3 {[%clk 00:18:06]} {[%emt
00:00:15]} f5 {[%clk 00:03:08]} {[%emt 00:00:59]} 23. g5 {[%clk 00:14:41]}
{[%emt 00:03:55]} Nf7 {[%clk 00:03:33]} {[%emt 00:00:06]} 24. Qf3 {[%clk
00:15:02]} {[%emt 00:00:09]} a5 {[%clk 00:02:48]} {[%emt 00:01:15]} 25. Re1
{[%clk 00:13:23]} {[%emt 00:02:08]} Rxe1 {[%clk 00:02:45]} {[%emt 00:00:34]} 26.
Bxe1 {[%clk 00:13:48]} {[%emt 00:00:05]} Qe6 {[%clk 00:02:44]} {[%emt
00:00:32]} 27. Bf2 {[%clk 00:12:26]} {[%emt 00:01:52]} Nd6 {[%clk 00:02:14]}
{[%emt 00:01:00]} 28. h4 {[%clk 00:11:43]} {[%emt 00:01:14]} Nb5 {[%clk
00:01:48]} {[%emt 00:00:56]} 29. h5 {[%clk 00:09:15]} {[%emt 00:02:57]} Nc7
{[%clk 00:01:49]} {[%emt 00:00:29]} 30. h6 {[%clk 00:08:33]} {[%emt 00:01:12]}
Bf8 {[%clk 00:02:10]} {[%emt 00:00:09]} 31. Nf1 {[%clk 00:08:00]} {[%emt
00:01:01]} b5 {[%clk 00:01:17]} {[%emt 00:01:25]} 32. Nd2 {[%clk 00:07:45]}
{[%emt 00:00:45]} Bd6 {[%clk 00:01:18]} {[%emt 00:00:29]} 33. Qe3 {[%clk
00:04:30]} {[%emt 00:03:45]} Kf7 {[%clk 00:01:13]} {[%emt 00:00:36]} 34. Kf3
{[%clk 00:04:15]} {[%emt 00:00:44]} Qxe3+ {[%clk 00:01:13]} {[%emt 00:00:30]}
35. Bxe3 {[%clk 00:04:17]} {[%emt 00:00:28]} Ne6 {[%clk 00:01:24]} {[%emt
00:00:20]} 36. Nb1 {[%clk 00:03:38]} {[%emt 00:01:09]} d4 {[%clk 00:01:07]}
{[%emt 00:00:46]} 37. Bd2 {[%clk 00:03:48]} {[%emt 00:00:20]} dxc3 {[%clk
00:01:09]} {[%emt 00:00:29]} 38. bxc3 {[%clk 00:03:28]} {[%emt 00:00:50]} b4
{[%clk 00:00:44]} {[%emt 00:00:55]} 39. Be3 {[%clk 00:02:20]} {[%emt 00:01:37]}
1/2-1/2

[Event "Latvijas 2022. gada jauniešu čempionāta fināls"]
[Site "Riga, Latvia"]
[Date "2022.06.12"]
[Round "1.2"]
[White "Jonins, Dmitrijs"]
[Black "Sokolovskis, Pavels"]
[Result "1/2-1/2"]
[TimeControl "3600+30"]
[WhiteElo "1503"]
[BlackElo "1572"]

1. e4 {[%clk 01:00:14]} {[%emt 00:00:46]} c5 {[%clk 01:00:53]} {[%emt
00:00:07]} 2. Nc3 {[%clk 01:00:25]} {[%emt 00:00:19]} a6 {[%clk 01:00:42]}
{[%emt 00:00:42]} 3. Nf3 {[%clk 01:00:38]} {[%emt 00:00:17]} e6 {[%clk
01:00:06]} {[%emt 00:01:06]} 4. Be2 {[%clk 00:59:41]} {[%emt 00:01:26]} Qc7
{[%clk 00:59:40]} {[%emt 00:00:57]} 5. O-O {[%clk 00:56:48]} {[%emt 00:03:23]}
d6 {[%clk 00:59:24]} {[%emt 00:00:46]} 6. d4 {[%clk 00:56:50]} {[%emt
00:00:28]} cxd4 {[%clk 00:59:43]} {[%emt 00:00:11]} 7. Nxd4 {[%clk 00:57:12]}
{[%emt 00:00:08]} Nf6 {[%clk 00:59:17]} {[%emt 00:00:56]} 8. Be3 {[%clk
00:55:17]} {[%emt 00:02:25]} Nbd7 {[%clk 00:58:37]} {[%emt 00:01:10]} 9. f4
{[%clk 00:44:09]} {[%emt 00:11:38]} b5 {[%clk 00:56:10]} {[%emt 00:02:57]} 10.
Bf3 {[%clk 00:39:08]} {[%emt 00:05:31]} Bb7 {[%clk 00:54:23]} {[%emt 00:02:18]}
11. a3 {[%clk 00:38:13]} {[%emt 00:01:25]} Be7 {[%clk 00:53:29]} {[%emt
00:01:23]} 12. Qe2 {[%clk 00:36:09]} {[%emt 00:02:34]} O-O {[%clk 00:51:49]}
{[%emt 00:02:10]} 13. Rad1 {[%clk 00:31:46]} {[%emt 00:04:52]} Nb6 {[%clk
00:47:21]} {[%emt 00:04:58]} 14. Bc1 {[%clk 00:16:30]} {[%emt 00:15:46]} Nc4
{[%clk 00:45:11]} {[%emt 00:02:40]} 15. Kh1 {[%clk 00:14:58]} {[%emt 00:02:03]}
Nd7 {[%clk 00:30:14]} {[%emt 00:15:26]} 16. f5 {[%clk 00:08:28]} {[%emt
00:07:01]} e5 {[%clk 00:26:01]} {[%emt 00:04:43]} 17. Nb3 {[%clk 00:08:32]}
{[%emt 00:00:26]} Rad8 {[%clk 00:19:00]} {[%emt 00:07:31]} 18. Nd2 {[%clk
00:06:10]} {[%emt 00:02:52]} Nxa3 {[%clk 00:17:24]} {[%emt 00:02:06]} 19. Nd5
{[%clk 00:02:55]} {[%emt 00:03:44]} Bxd5 {[%clk 00:17:43]} {[%emt 00:00:11]} 20.
bxa3 {[%clk 00:02:59]} {[%emt 00:00:27]} Bc4 {[%clk 00:17:22]} {[%emt
00:00:51]} 21. Nxc4 {[%clk 00:03:05]} {[%emt 00:00:23]} Qxc4 {[%clk 00:17:26]}
{[%emt 00:00:27]} 22. Qxc4 {[%clk 00:03:15]} {[%emt 00:00:19]} bxc4 {[%clk
00:17:51]} {[%emt 00:00:06]} 23. Bd2 {[%clk 00:03:21]} {[%emt 00:00:23]} Nc5
{[%clk 00:11:06]} {[%emt 00:07:15]} 24. Bb4 {[%clk 00:02:52]} {[%emt 00:00:58]}
Rc8 {[%clk 00:06:36]} {[%emt 00:05:00]} 25. Rd5 {[%clk 00:02:36]} {[%emt
00:00:43]} Nb7 {[%clk 00:04:38]} {[%emt 00:02:32]} 26. Be2 {[%clk 00:02:26]}
{[%emt 00:00:39]} Rc6 {[%clk 00:04:19]} {[%emt 00:00:50]} 27. Rfd1 {[%clk
00:01:20]} {[%emt 00:01:36]} Ra8 {[%clk 00:04:15]} {[%emt 00:00:34]} 28. a4
{[%clk 00:01:00]} {[%emt 00:00:49]} a5 {[%clk 00:04:02]} {[%emt 00:00:43]} 29.
Ba3 {[%clk 00:01:23]} {[%emt 00:00:07]} Rac8 {[%clk 00:03:29]} {[%emt
00:01:03]} 30. Rb1 {[%clk 00:01:26]} {[%emt 00:00:27]} Nc5 {[%clk 00:02:57]}
{[%emt 00:01:02]} 31. Bxc5 {[%clk 00:01:35]} {[%emt 00:00:21]} Rxc5 {[%clk
00:03:17]} {[%emt 00:00:11]} 32. Rxc5 {[%clk 00:01:57]} {[%emt 00:00:09]} Rxc5
{[%clk 00:03:22]} {[%emt 00:00:25]} 33. Rb8+ {[%clk 00:02:22]} {[%emt
00:00:05]} Bf8 {[%clk 00:03:48]} {[%emt 00:00:04]} 34. Rb5 {[%clk 00:02:27]}
{[%emt 00:00:25]} 1/2-1/2

[Event "Latvijas 2022. gada jauniešu čempionāta fināls"]
[Site "Riga, Latvia"]
[Date "2022.06.12"]
[Round "1.3"]
[White "Lahs, Einars"]
[Black "Bogdanovics, Kirills"]
[Result "1/2-1/2"]
[TimeControl "3600+30"]
[WhiteElo "1675"]
[BlackElo "1785"]

1. e4 {[%clk 01:00:58]} {[%emt 00:00:01]} c5 {[%clk 01:00:56]} {[%emt
00:00:05]} 2. Nf3 {[%clk 01:01:24]} {[%emt 00:00:04]} d6 {[%clk 01:01:21]}
{[%emt 00:00:05]} 3. d4 {[%clk 01:01:49]} {[%emt 00:00:05]} cxd4 {[%clk
01:01:46]} {[%emt 00:00:05]} 4. Nxd4 {[%clk 01:02:16]} {[%emt 00:00:03]} Nf6
{[%clk 01:02:09]} {[%emt 00:00:06]} 5. Nc3 {[%clk 01:02:34]} {[%emt 00:00:12]}
a6 {[%clk 01:02:32]} {[%emt 00:00:08]} 6. Bc4 {[%clk 01:02:45]} {[%emt
00:00:18]} e6 {[%clk 01:02:21]} {[%emt 00:00:41]} 7. Bb3 {[%clk 01:02:49]}
{[%emt 00:00:27]} Nbd7 {[%clk 01:00:22]} {[%emt 00:02:30]} 8. O-O {[%clk
00:57:14]} {[%emt 00:06:04]} Nc5 {[%clk 00:58:25]} {[%emt 00:02:27]} 9. Re1
{[%clk 00:57:16]} {[%emt 00:00:27]} Be7 {[%clk 00:57:24]} {[%emt 00:01:32]} 10.
f3 {[%clk 00:48:24]} {[%emt 00:09:22]} O-O {[%clk 00:56:06]} {[%emt 00:01:48]}
11. Be3 {[%clk 00:47:18]} {[%emt 00:01:36]} e5 {[%clk 00:52:03]} {[%emt
00:04:34]} 12. Nf5 {[%clk 00:40:43]} {[%emt 00:07:05]} Nxb3 {[%clk 00:49:07]}
{[%emt 00:03:26]} 13. Nxe7+ {[%clk 00:39:42]} {[%emt 00:01:31]} Qxe7 {[%clk
00:49:34]} {[%emt 00:00:03]} 14. cxb3 {[%clk 00:40:01]} {[%emt 00:00:11]} b5
{[%clk 00:44:49]} {[%emt 00:05:14]} 15. Bg5 {[%clk 00:36:21]} {[%emt 00:04:10]}
Bb7 {[%clk 00:43:23]} {[%emt 00:01:56]} 16. Nd5 {[%clk 00:36:18]} {[%emt
00:00:32]} Bxd5 {[%clk 00:43:38]} {[%emt 00:00:15]} 17. Bxf6 {[%clk 00:36:21]}
{[%emt 00:00:27]} Qa7+ {[%clk 00:39:09]} {[%emt 00:05:00]} 18. Kh1 {[%clk
00:33:59]} {[%emt 00:02:52]} Be6 {[%clk 00:39:10]} {[%emt 00:00:29]} 19. Bg5
{[%clk 00:32:11]} {[%emt 00:02:15]} Qd7 {[%clk 00:38:48]} {[%emt 00:00:55]} 20.
Qd2 {[%clk 00:30:37]} {[%emt 00:02:04]} f6 {[%clk 00:37:53]} {[%emt 00:01:26]}
21. Be3 {[%clk 00:29:54]} {[%emt 00:01:13]} Rab8 {[%clk 00:24:58]} {[%emt
00:13:25]} 22. Red1 {[%clk 00:22:32]} {[%emt 00:07:52]} Rfd8 {[%clk 00:24:59]}
{[%emt 00:00:28]} 23. Qa5 {[%clk 00:20:33]} {[%emt 00:02:29]} Qb7 {[%clk
00:23:39]} {[%emt 00:01:51]} 24. Rac1 {[%clk 00:19:41]} {[%emt 00:01:22]} Rd7
{[%clk 00:21:58]} {[%emt 00:02:10]} 25. Rd2 {[%clk 00:16:14]} {[%emt 00:03:57]}
Rc8 {[%clk 00:18:10]} {[%emt 00:04:17]} 26. Rdc2 {[%clk 00:09:55]} {[%emt
00:06:50]} Rxc2 {[%clk 00:17:56]} {[%emt 00:00:44]} 27. Rxc2 {[%clk 00:10:23]}
{[%emt 00:00:02]} d5 {[%clk 00:18:06]} {[%emt 00:00:19]} 28. exd5 {[%clk
00:08:37]} {[%emt 00:02:16]} Bxd5 {[%clk 00:18:19]} {[%emt 00:00:17]} 29. Qc3
{[%clk 00:05:32]} {[%emt 00:03:35]} Kf7 {[%clk 00:17:13]} {[%emt 00:01:36]}
1/2-1/2

[Event "Latvijas 2022. gada jauniešu čempionāta fināls"]
[Site "Riga, Latvia"]
[Date "2022.06.12"]
[Round "1.6"]
[White "Steiners, Emils"]
[Black "Merzlovs, Timurs"]
[Result "1-0"]
[TimeControl "3600+30"]
[WhiteElo "1601"]
[BlackElo "1152"]

1. e4 {[%clk 01:00:57]} {[%emt 00:00:02]} e5 {[%clk 01:00:54]} {[%emt
00:00:06]} 2. Nf3 {[%clk 01:01:19]} {[%emt 00:00:08]} Nc6 {[%clk 01:01:19]}
{[%emt 00:00:07]} 3. d4 {[%clk 01:01:35]} {[%emt 00:00:13]} exd4 {[%clk
01:01:42]} {[%emt 00:00:07]} 4. c3 {[%clk 01:01:54]} {[%emt 00:00:11]} dxc3
{[%clk 01:02:00]} {[%emt 00:00:13]} 5. Nxc3 {[%clk 01:02:15]} {[%emt 00:00:08]}
Bb4 {[%clk 01:02:18]} {[%emt 00:00:13]} 6. Bc4 {[%clk 01:02:36]} {[%emt
00:00:09]} Bxc3+ {[%clk 01:02:08]} {[%emt 00:00:40]} 7. bxc3 {[%clk 01:02:57]}
{[%emt 00:00:09]} Nge7 {[%clk 01:01:29]} {[%emt 00:01:09]} 8. O-O {[%clk
01:02:50]} {[%emt 00:00:36]} O-O {[%clk 01:01:51]} {[%emt 00:00:08]} 9. Ng5
{[%clk 00:49:20]} {[%emt 00:13:59]} h6 {[%clk 01:00:32]} {[%emt 00:01:49]} 10.
Nxf7 {[%clk 00:47:12]} {[%emt 00:02:38]} Rxf7 {[%clk 01:00:39]} {[%emt
00:00:23]} 11. Qh5 {[%clk 00:47:06]} {[%emt 00:00:36]} Qe8 {[%clk 00:55:55]}
{[%emt 00:05:15]} 12. a4 {[%clk 00:38:27]} {[%emt 00:09:08]} Kf8 {[%clk
00:55:17]} {[%emt 00:01:09]} 13. Bxh6 {[%clk 00:33:28]} {[%emt 00:05:29]} gxh6
{[%clk 00:48:33]} {[%emt 00:07:14]} 14. Qxh6+ {[%clk 00:32:15]} {[%emt
00:01:42]} Kg8 {[%clk 00:46:08]} {[%emt 00:02:55]} 15. f4 {[%clk 00:28:43]}
{[%emt 00:04:03]} Qf8 {[%clk 00:43:59]} {[%emt 00:02:38]} 16. Bxf7+ {[%clk
00:28:33]} {[%emt 00:00:40]} Kxf7 {[%clk 00:37:18]} {[%emt 00:07:12]} 17. Qh5+
{[%clk 00:28:41]} {[%emt 00:00:22]} Kg8 {[%clk 00:21:07]} {[%emt 00:16:41]} 18.
Rf3 {[%clk 00:25:12]} {[%emt 00:03:58]} Qf7 {[%clk 00:20:28]} {[%emt 00:01:10]}
19. Qh6 {[%clk 00:24:34]} {[%emt 00:01:08]} Ng6 {[%clk 00:14:42]} {[%emt
00:06:16]} 20. Rg3 {[%clk 00:21:07]} {[%emt 00:03:57]} Nce7 {[%clk 00:11:46]}
{[%emt 00:03:26]} 21. f5 {[%clk 00:18:28]} {[%emt 00:03:10]} 1-0

[Event "Latvijas 2022. gada jauniešu čempionāta fināls"]
[Site "Riga, Latvia"]
[Date "2022.06.12"]
[Round "1.8"]
[White "Vasiljeva, Sofja"]
[Black "Zubova, Polina"]
[Result "1-0"]
[TimeControl "3600+30"]
[WhiteElo "1676"]
[BlackElo "1070"]

1. e4 {[%clk 01:00:54]} {[%emt 00:00:06]} e5 {[%clk 01:00:43]} {[%emt
00:00:17]} 2. Nf3 {[%clk 01:01:19]} {[%emt 00:00:05]} Nc6 {[%clk 01:00:42]}
{[%emt 00:00:31]} 3. Bb5 {[%clk 01:01:43]} {[%emt 00:00:06]} Nd4 {[%clk
00:58:03]} {[%emt 00:03:09]} 4. Nxd4 {[%clk 01:01:39]} {[%emt 00:00:34]} exd4
{[%clk 00:58:27]} {[%emt 00:00:07]} 5. O-O {[%clk 01:00:27]} {[%emt 00:01:41]}
a6 {[%clk 00:56:58]} {[%emt 00:02:00]} 6. Bc4 {[%clk 00:59:31]} {[%emt
00:01:25]} b5 {[%clk 00:55:55]} {[%emt 00:01:34]} 7. Bxf7+ {[%clk 00:58:09]}
{[%emt 00:01:52]} Kxf7 {[%clk 00:55:34]} {[%emt 00:00:51]} 8. Qh5+ {[%clk
00:58:34]} {[%emt 00:00:05]} g6 {[%clk 00:55:24]} {[%emt 00:00:40]} 9. Qd5+
{[%clk 00:58:57]} {[%emt 00:00:07]} Ke8 {[%clk 00:55:41]} {[%emt 00:00:13]} 10.
Qxa8 {[%clk 00:57:09]} {[%emt 00:02:18]} c6 {[%clk 00:55:47]} {[%emt 00:00:24]}
11. Qa7 {[%clk 00:54:09]} {[%emt 00:03:31]} Qf6 {[%clk 00:52:42]} {[%emt
00:03:33]} 12. Qb8 {[%clk 00:52:32]} {[%emt 00:02:09]} Ne7 {[%clk 00:52:19]}
{[%emt 00:00:52]} 13. d3 {[%clk 00:50:28]} {[%emt 00:02:34]} Bg7 {[%clk
00:51:47]} {[%emt 00:01:02]} 14. Qg3 {[%clk 00:48:16]} {[%emt 00:02:41]} Kf7
{[%clk 00:49:54]} {[%emt 00:02:24]} 15. Nd2 {[%clk 00:46:43]} {[%emt 00:02:03]}
Rf8 {[%clk 00:49:41]} {[%emt 00:00:43]} 16. Nf3 {[%clk 00:46:04]} {[%emt
00:01:09]} Kg8 {[%clk 00:46:51]} {[%emt 00:03:21]} 17. Bd2 {[%clk 00:44:10]}
{[%emt 00:02:24]} d5 {[%clk 00:45:44]} {[%emt 00:01:37]} 18. Bb4 {[%clk
00:40:47]} {[%emt 00:03:53]} Re8 {[%clk 00:45:09]} {[%emt 00:01:04]} 19. Rfe1
{[%clk 00:40:21]} {[%emt 00:00:56]} Bd7 {[%clk 00:44:17]} {[%emt 00:01:22]} 20.
e5 {[%clk 00:39:10]} {[%emt 00:01:42]} Qf5 {[%clk 00:39:37]} {[%emt 00:05:09]}
21. Nxd4 {[%clk 00:38:16]} {[%emt 00:01:23]} Qh5 {[%clk 00:38:17]} {[%emt
00:01:50]} 22. e6 {[%clk 00:31:09]} {[%emt 00:07:38]} Bc8 {[%clk 00:38:20]}
{[%emt 00:00:27]} 23. Bxe7 {[%clk 00:31:11]} {[%emt 00:00:28]} Rxe7 {[%clk
00:38:38]} {[%emt 00:00:12]} 24. Nxc6 {[%clk 00:31:26]} {[%emt 00:00:15]} Rxe6
{[%clk 00:38:51]} {[%emt 00:00:17]} 25. Rxe6 {[%clk 00:31:51]} {[%emt
00:00:06]} Bxe6 {[%clk 00:39:14]} {[%emt 00:00:07]} 26. Re1 {[%clk 00:32:04]}
{[%emt 00:00:16]} Bd7 {[%clk 00:38:46]} {[%emt 00:00:58]} 27. Qb8+ {[%clk
00:31:35]} {[%emt 00:00:59]} Kf7 {[%clk 00:38:39]} {[%emt 00:00:36]} 28. Re7+
{[%clk 00:31:42]} {[%emt 00:00:23]} Kf6 {[%clk 00:38:57]} {[%emt 00:00:11]} 29.
Qd6+ {[%clk 00:31:53]} {[%emt 00:00:20]} Kg5 {[%clk 00:38:31]} {[%emt
00:00:56]} 30. Qxd5+ {[%clk 00:31:34]} {[%emt 00:00:49]} Bf5 {[%clk 00:38:49]}
{[%emt 00:00:11]} 31. f3 {[%clk 00:29:17]} {[%emt 00:02:48]} Qh4 {[%clk
00:38:35]} {[%emt 00:00:44]} 32. g3 {[%clk 00:28:45]} {[%emt 00:01:02]} Qh3
{[%clk 00:37:52]} {[%emt 00:01:13]} 33. Rxg7 {[%clk 00:28:41]} {[%emt
00:00:34]} 1-0

[Event "Latvijas 2022. gada jauniešu čempionāta fināls"]
[Site "Riga, Latvia"]
[Date "2022.06.12"]
[Round "1.9"]
[White "Reiha, Ance"]
[Black "Zubova, Darja"]
[Result "0-1"]
[TimeControl "3600+30"]
[WhiteElo "1248"]
[BlackElo "1280"]

1. c4 {[%clk 01:00:53]} {[%emt 00:00:06]} e5 {[%clk 00:59:01]} {[%emt
00:02:00]} 2. Nc3 {[%clk 01:01:11]} {[%emt 00:00:12]} Nc6 {[%clk 00:58:21]}
{[%emt 00:01:10]} 3. Nf3 {[%clk 00:59:42]} {[%emt 00:01:59]} Nf6 {[%clk
00:57:07]} {[%emt 00:01:44]} 4. d4 {[%clk 00:57:06]} {[%emt 00:03:06]} exd4
{[%clk 00:51:23]} {[%emt 00:06:13]} 5. Nxd4 {[%clk 00:57:01]} {[%emt 00:00:36]}
Ne5 {[%clk 00:50:34]} {[%emt 00:01:18]} 6. Qb3 {[%clk 00:54:23]} {[%emt
00:03:09]} Bc5 {[%clk 00:46:52]} {[%emt 00:04:11]} 7. Nf5 {[%clk 00:46:56]}
{[%emt 00:07:57]} O-O {[%clk 00:46:08]} {[%emt 00:01:14]} 8. Bg5 {[%clk
00:45:07]} {[%emt 00:02:19]} d5 {[%clk 00:40:22]} {[%emt 00:06:16]} 9. e4
{[%clk 00:42:58]} {[%emt 00:02:39]} dxe4 {[%clk 00:33:52]} {[%emt 00:07:01]} 10.
Rd1 {[%clk 00:39:32]} {[%emt 00:03:56]} Qe8 {[%clk 00:28:31]} {[%emt 00:05:49]}
11. Bxf6 {[%clk 00:36:18]} {[%emt 00:03:46]} Nd3+ {[%clk 00:24:12]} {[%emt
00:04:48]} 12. Bxd3 {[%clk 00:25:56]} {[%emt 00:10:53]} exd3+ {[%clk 00:24:10]}
{[%emt 00:00:32]} 13. Kd2 {[%clk 00:22:45]} {[%emt 00:03:41]} Bxf5 {[%clk
00:23:21]} {[%emt 00:01:18]} 14. Rhe1 {[%clk 00:21:06]} {[%emt 00:02:09]} Qc6
{[%clk 00:19:52]} {[%emt 00:03:58]} 15. Bh4 {[%clk 00:17:04]} {[%emt 00:04:33]}
Qh6+ {[%clk 00:19:42]} {[%emt 00:00:40]} 16. Re3 {[%clk 00:14:53]} {[%emt
00:02:43]} Bxe3+ {[%clk 00:19:27]} {[%emt 00:00:45]} 17. fxe3 {[%clk 00:15:10]}
{[%emt 00:00:13]} Qxh4 {[%clk 00:19:48]} {[%emt 00:00:08]} 18. Rf1 {[%clk
00:15:15]} {[%emt 00:00:25]} Bg6 {[%clk 00:19:00]} {[%emt 00:01:18]} 19. Nd5
{[%clk 00:14:45]} {[%emt 00:01:00]} c6 {[%clk 00:14:42]} {[%emt 00:04:48]} 20.
Rf4 {[%clk 00:13:52]} {[%emt 00:01:23]} Qd8 {[%clk 00:11:11]} {[%emt 00:03:58]}
21. Nc3 {[%clk 00:13:47]} {[%emt 00:00:38]} b6 {[%clk 00:10:00]} {[%emt
00:01:41]} 22. h4 {[%clk 00:13:01]} {[%emt 00:01:16]} Re8 {[%clk 00:09:27]}
{[%emt 00:01:03]} 23. Qa4 {[%clk 00:11:50]} {[%emt 00:01:41]} Re6 {[%clk
00:08:38]} {[%emt 00:01:18]} 24. Qd1 {[%clk 00:11:51]} {[%emt 00:00:30]} Rf6
{[%clk 00:08:39]} {[%emt 00:00:28]} 25. Rd4 {[%clk 00:07:09]} {[%emt 00:05:12]}
Qc7 {[%clk 00:08:32]} {[%emt 00:00:37]} 26. h5 {[%clk 00:06:53]} {[%emt
00:00:47]} Rf2+ {[%clk 00:06:36]} {[%emt 00:02:25]} 27. Ke1 {[%clk 00:05:03]}
{[%emt 00:02:20]} Qg3 {[%clk 00:06:35]} {[%emt 00:00:30]} 28. Rg4 {[%clk
00:01:55]} {[%emt 00:03:40]} Qxe3+ {[%clk 00:06:49]} {[%emt 00:00:16]} 0-1

[Event "Latvijas 2022. gada jauniešu čempionāta fināls"]
[Site "Riga, Latvia"]
[Date "2022.06.13"]
[Round "2.1"]
[White "Germanovs, Georgijs"]
[Black "Paikens, Reinis"]
[Result "1-0"]
[TimeControl "3600+30"]
[WhiteElo "1750"]
[BlackElo "1534"]

1. d4 {[%clk 00:53:07]} {[%emt 00:07:53]} d5 {[%clk 01:00:47]} {[%emt
00:00:14]} 2. Nf3 {[%clk 00:53:30]} {[%emt 00:00:07]} Bf5 {[%clk 01:00:51]}
{[%emt 00:00:26]} 3. Bf4 {[%clk 00:53:49]} {[%emt 00:00:10]} Nf6 {[%clk
01:00:43]} {[%emt 00:00:39]} 4. e3 {[%clk 00:54:09]} {[%emt 00:00:10]} e6
{[%clk 01:00:14]} {[%emt 00:00:59]} 5. c3 {[%clk 00:54:34]} {[%emt 00:00:05]}
Be7 {[%clk 00:59:19]} {[%emt 00:01:25]} 6. Bd3 {[%clk 00:54:15]} {[%emt
00:00:49]} Bg6 {[%clk 00:58:51]} {[%emt 00:00:58]} 7. Ne5 {[%clk 00:54:11]}
{[%emt 00:00:33]} Nbd7 {[%clk 00:57:57]} {[%emt 00:01:24]} 8. Nxg6 {[%clk
00:52:56]} {[%emt 00:01:46]} hxg6 {[%clk 00:57:49]} {[%emt 00:00:37]} 9. h3
{[%clk 00:53:09]} {[%emt 00:00:15]} Bd6 {[%clk 00:57:19]} {[%emt 00:01:02]} 10.
Nd2 {[%clk 00:52:29]} {[%emt 00:01:10]} Bxf4 {[%clk 00:56:38]} {[%emt
00:01:11]} 11. exf4 {[%clk 00:52:54]} {[%emt 00:00:06]} c5 {[%clk 00:54:55]}
{[%emt 00:02:12]} 12. Nf3 {[%clk 00:51:00]} {[%emt 00:02:24]} a6 {[%clk
00:49:17]} {[%emt 00:06:09]} 13. O-O {[%clk 00:50:30]} {[%emt 00:00:59]} Qc7
{[%clk 00:45:50]} {[%emt 00:03:58]} 14. Ne5 {[%clk 00:50:49]} {[%emt 00:00:11]}
c4 {[%clk 00:41:24]} {[%emt 00:04:55]} 15. Bc2 {[%clk 00:50:50]} {[%emt
00:00:29]} Nxe5 {[%clk 00:40:00]} {[%emt 00:01:55]} 16. fxe5 {[%clk 00:51:07]}
{[%emt 00:00:13]} Nd7 {[%clk 00:39:43]} {[%emt 00:00:46]} 17. Qd2 {[%clk
00:50:15]} {[%emt 00:01:21]} Rh6 {[%clk 00:37:04]} {[%emt 00:03:11]} 18. b3
{[%clk 00:50:18]} {[%emt 00:00:27]} Nb6 {[%clk 00:30:22]} {[%emt 00:07:12]} 19.
a4 {[%clk 00:46:52]} {[%emt 00:03:56]} cxb3 {[%clk 00:24:32]} {[%emt 00:06:21]}
20. Bxb3 {[%clk 00:47:14]} {[%emt 00:00:07]} Rc8 {[%clk 00:21:54]} {[%emt
00:03:08]} 21. Rfc1 {[%clk 00:46:03]} {[%emt 00:01:40]} Nc4 {[%clk 00:21:45]}
{[%emt 00:00:40]} 22. Bxc4 {[%clk 00:45:44]} {[%emt 00:00:49]} Qxc4 {[%clk
00:21:42]} {[%emt 00:00:32]} 23. Rab1 {[%clk 00:45:41]} {[%emt 00:00:32]} Rc7
{[%clk 00:21:48]} {[%emt 00:00:26]} 24. Rb4 {[%clk 00:45:50]} {[%emt 00:00:20]}
Qc6 {[%clk 00:21:07]} {[%emt 00:01:10]} 25. Qb2 {[%clk 00:43:03]} {[%emt
00:03:18]} Kd7 {[%clk 00:16:08]} {[%emt 00:05:29]} 26. Rb6 {[%clk 00:43:03]}
{[%emt 00:00:30]} Qxa4 {[%clk 00:16:18]} {[%emt 00:00:21]} 27. Rxb7 {[%clk
00:43:14]} {[%emt 00:00:19]} Rh8 {[%clk 00:15:42]} {[%emt 00:01:05]} 28. Rxc7+
{[%clk 00:41:50]} {[%emt 00:01:55]} Kxc7 {[%clk 00:15:50]} {[%emt 00:00:22]} 29.
Rb1 {[%clk 00:42:14]} {[%emt 00:00:05]} Qb5 {[%clk 00:12:12]} {[%emt 00:04:08]}
30. Qa2 {[%clk 00:42:35]} {[%emt 00:00:09]} Qc4 {[%clk 00:04:40]} {[%emt
00:08:03]} 31. Qa5+ {[%clk 00:42:54]} {[%emt 00:00:10]} Kc8 {[%clk 00:03:01]}
{[%emt 00:02:09]} 32. Qb6 {[%clk 00:43:15]} {[%emt 00:00:10]} Qc7 {[%clk
00:00:36]} {[%emt 00:02:54]} 33. Qxa6+ {[%clk 00:43:38]} {[%emt 00:00:08]} 1-0